Cogmind - Beta 16.1 @@@ ROGUE MODE // 2026.01.27 @ 17:15:40 Player: H3-MLN Result: Destroyed by BL-1NK with Heavy Tesla Rifle Performance ------------- Evolutions (2) 1000 Regions Visited (7) 1400 Robots Destroyed (123) 615 Value Destroyed (2746) 2746 Prototype IDs (46) 920 Alien Tech Used (0) 0 Bonus (451) 451 TOTAL SCORE: 7132 Bonus ------- Follower Combat Kills 70 Hunted by Unchained 500 Aligned with FarCom 300 Friendly Fire -419 Cogmind --------- Core Integrity 0/550 Matter 244/300 Energy 170/170 System Corruption 1% Temperature Cool (15) Movement Walking (190) Ox1 Location -8/Materials Parts ------- > --- POWER (1) -------- Light Neutrino Core > --- PROPULSION (3) --- Improved Carbon-fiber Leg Improved Carbon-fiber Leg Advanced Myomer Leg > --- UTILITY (4) ------ Huge Storage Unit Experimental Targeting Computer Core Analyzer Core Analyzer > --- WEAPON (3) ------- YOLO Cannon 8R-AWN's Boregun > --- INVENTORY (25) --- Improved Aluminum Leg Titanium Leg Titanium Leg Titanium Leg Advanced Myomer Leg Armored Wheel Advanced Weight Redist. System Improved Armor Integrity Analyzer Advanced Transmission Jammer 8R-AWN's Armor/EX System Purifier Improved Trap Extractor (0/6) AS-neutralizer No. 17b Particle Gun Light EM Pulse Cannon Improved EM Pulse Cannon 8R-AWN's Boregun Assault Cannon Mini Grenade Launcher Peak State ------------ > --- POWER ------------ Light Neutrino Core > --- PROPULSION ------- Improved Carbon-fiber Leg Improved Carbon-fiber Leg Advanced Myomer Leg > --- UTILITY ---------- Huge Storage Unit Experimental Targeting Computer Core Analyzer Splice Drone Bay > --- WEAPON ----------- YOLO Cannon 8R-AWN's Boregun > --- INVENTORY -------- Improved Aluminum Leg Titanium Leg Titanium Leg Titanium Leg Advanced Myomer Leg Armored Wheel Advanced Weight Redist. System Core Analyzer Improved Armor Integrity Analyzer Advanced Transmission Jammer 8R-AWN's Armor/EX System Purifier Improved Trap Extractor AS-neutralizer No. 17b Particle Gun Light EM Pulse Cannon Improved EM Pulse Cannon 8R-AWN's Boregun Assault Cannon Mini Grenade Launcher [Rating: 82] Favorites ----------- Power Deuterium Engine Engine Deuterium Engine Power Core Light Neutrino Core Propulsion Light Treads Treads Light Treads Leg Advanced Myomer Leg Wheel Wheel Flight Unit Improved Flight Unit Utility Huge Storage Unit Device Cooling System Storage Huge Storage Unit Processor Core Analyzer Hackware System Shield Protection Medium Armor Plating Weapon Improved Assault Rifle Energy Gun Beamcaster Energy Cannon YOLO Cannon Ballistic Gun Improved Assault Rifle Ballistic Cannon Flak Cannon Launcher Mini Grenade Launcher Impact Weapon Heavy Mace Slashing Weapon Chainsword Special Melee Weapon Datajack Build | -11 -10 -10 -9 -9 -9 -8 -8 ------- Run | Yrd Mat Min Mat Min Exi Min Mat Slots Evolved 4 | . . . 2 . . . 2 Power . | . . . . . . . . Propulsion 1 | . . . . . . . 1 Utility 2 | . . . 1 . . . 1 Weapon 1 | . . . 1 . . . . Parts Attached 90 | 9 2 7 19 5 18 3 27 Power 11 | 2 . 1 3 . 1 1 3 Engine 10 | 2 . 1 3 . 1 1 2 Core 1 | . . . . . . . 1 Reactor . | . . . . . . . . Propulsion 27 | 3 . 2 7 . 5 . 10 Treads 14 | 1 . 1 6 . 2 . 4 Leg 8 | . . . . . 3 . 5 Wheel 4 | 2 . 1 . . . . 1 Hover . | . . . . . . . . Flight 1 | . . . 1 . . . . Utility 24 | 2 1 2 5 2 6 . 6 Device 5 | 1 . 1 . 1 1 . 1 Storage 3 | 1 1 . 1 . . . . Processor 5 | . . . . . 2 . 3 Hackware 2 | . . . 2 . . . . Protection 9 | . . 1 2 1 3 . 2 Artifact . | . . . . . . . . Weapon 28 | 2 1 2 4 3 6 2 8 Energy Gun 2 | . . . . 1 . . 1 Energy Cannon 3 | . . . . . . 2 1 Ballistic Gun 13 | 2 . 1 3 . 3 . 4 Ballistic Cannon 5 | . 1 1 . 1 . . 2 Launcher 2 | . . . . 1 1 . . Special Weapon . | . . . . . . . . Impact Weapon 1 | . . . 1 . . . . Slashing Weapon 1 | . . . . . 1 . . Piercing Weapon . | . . . . . . . . Special Melee Weapon 1 | . . . . . 1 . . Unidentified Prototypes 3 | . . 1 2 . . . . Parts Lost 30 | . . 1 1 . 9 1 18 Power 5 | . . . . . 1 1 3 Propulsion 6 | . . . . . 2 . 4 Utility 11 | . . 1 1 . 3 . 6 Weapon 8 | . . . . . 3 . 5 Highest Loss Streak 12 | . . 1 1 . 7 1 12 To Critical Strikes 5 | . . . . . 5 . . Average Backups 21 | 3 10 14 22 24 22 21 21 Power . | . 1 . . 1 . 1 . Propulsion 4 | 1 3 3 5 5 3 2 5 Utility 8 | . 1 5 9 8 8 10 9 Weapon 7 | . 4 5 6 8 8 8 6 Tool/Special . | . . . . . . . . Unused Backups 33 | . 3 6 8 2 2 . 12 Power 1 | . . . 1 . . . . Propulsion 7 | . 1 . 1 1 . . 4 Utility 17 | . . 3 4 . 2 . 8 Weapon 7 | . 2 3 1 1 . . . Tool/Special 1 | . . . 1 . . . . Average Slot Usage (%) 97 | . 100 100 99 100 95 99 91 Engine 10 | . 14 14 11 11 10 10 7 Treads 15 | . 14 14 21 22 15 . 9 Leg 5 | . . . . . 6 22 15 Wheel 2 | . 14 14 . . . . . Device 6 | . 14 11 . 9 5 . 10 Storage 11 | . 14 14 11 11 11 11 9 Processor 5 | . . . . . 7 22 10 Hackware 2 | . . . 10 1 . . . Protection 6 | . . 2 10 11 7 . 4 Energy Gun 2 | . . . . 10 . 4 2 Ballistic Gun 13 | . 19 14 21 . 9 21 11 Ballistic Cannon 7 | . 8 14 10 18 . . 5 Launcher 1 | . . . . 3 . 5 . Impact Weapon 1 | . . . . . 5 . . Slashing Weapon 2 | . . . . . 10 . . Special Melee Weapon 1 | . . . . . 5 . . Peak Build Rating 82 | 7 9 19 27 26 57 57 82 Average Rating 32 | 5 7 12 22 25 35 55 56 On Entrance 24 | . 7 9 15 25 26 57 53 Avg Prop Armor Cover (%) 10 | 5 11 10 7 . 11 . 5 Naked Turns . | . . . . . . . . Heaviest Build 123 | 14 31 42 108 113 111 102 123 Greatest Support 66 | 20 20 10 40 40 60 60 66 Greatest Overweight (x) 8 | . 3 4 4 2 3 1 8 Average Overweight (x) 1 | . 1 3 2 2 1 1 1 Largest Inventory Capacity 25 | 8 15 15 25 25 25 25 25 Average Capacity 23 | 7 11 15 23 25 25 25 25 Most Carried 25 | 6 15 15 25 25 25 25 25 Average Carried 22 | 3 10 14 23 24 24 25 24 Final Capacity 25 | 8 15 15 25 25 25 25 25 Final Carried 25 | 6 15 15 25 25 25 25 21 Class Distribution -------------------- 34% | Mutant 29% | Tank 11% | Scavenger-Tank 10% | Gunner 9% | Scavenger-Gunner 4% | Scavenger-Mutant Dominant Class ---------------- Mutant | -10/Materials Mutant | -10/Mines Tank | -9/Materials Tank | -9/Mines Mutant | -9/Exiles Gunner | -8/Mines Scavenger-Gunner | -8/Materials Resources | -11 -10 -10 -9 -9 -9 -8 -8 ----------- Run | Yrd Mat Min Mat Min Exi Min Mat Matter Collected 3902 | 306 164 216 1237 261 568 124 1026 Remotely . | . . . . . . . . Salvage Created 4268 | 128 350 223 1622 68 519 219 1139 Parts 295 | 10 19 27 82 13 62 21 61 Haulers Intercepted 9 | . 1 . 4 . . . 4 Recyclers Shooed 2 | . . . 2 . . . . Parts Field Recycled . | . . . . . . . . Retrieved Matter . | . . . . . . . . Parts Self-Destructed . | . . . . . . . . Prevented . | . . . . . . . . Parts Restored . | . . . . . . . . Kills | -11 -10 -10 -9 -9 -9 -8 -8 ------- Run | Yrd Mat Min Mat Min Exi Min Mat Combat Hostiles Destroyed 82 | . 6 12 27 9 8 7 13 Guns 40 | . 6 4 15 . 1 3 11 Cannons 23 | . . 8 12 1 . . 2 AOE 19 | . . . . 8 7 4 . Classes Destroyed 19 | 2 4 2 2 1 3 1 4 Worker 5 | . . 1 2 . . . 2 Builder 1 | . . . . . . . 1 Tunneler 6 | 2 . 1 1 1 . 1 . Hauler 9 | . 1 . 4 . . . 4 Recycler 7 | 1 . . 2 . . . 4 Operator 4 | . 1 . 3 . . . . Drone 2 | . . . . . . . 2 Turret 1 | . . . . . 1 . . Watcher 7 | . 1 . 5 . . . 1 Swarmer 23 | . . 12 . 8 . 3 . Grunt 30 | . 6 . 16 . . 2 6 Brawler 4 | . . . 3 . . 1 . Duelist 1 | . . . . . . . 1 Sentry 11 | . . . 8 . . . 3 Demolisher 1 | . . . . 1 . . . Specialist 2 | . . . . . . . 2 Hunter 1 | . . . . . . 1 . Zionite 5 | . . . . . 5 . . Assembled 7 | . . . . . 7 . . Thug 1 | . . 1 . . . . . Best Kill Streak 9 | 3 2 3 8 4 9 3 6 Combat Bots Only 7 | . 2 3 4 3 7 3 5 Max Kills in Single Turn 3 | 1 1 2 2 3 3 3 2 Gunslinging 1 | . . . . . . 1 . Exploded 3 | . . . . 3 3 3 . Melee . | . . . . . . . . Uniques/NPCs Destroyed 5 | . . . . . 4 . 1 8R-AWN (-9/Exiles) EX-DEC (-9/Exiles) EX-BIN (-9/Exiles) EX-HEX (-9/Exiles) 7R-MNS (-8/Materials) Combat | -11 -10 -10 -9 -9 -9 -8 -8 -------- Run | Yrd Mat Min Mat Min Exi Min Mat Hostile Shots Fired 422 | . 26 38 71 14 79 23 171 Missed 85 | . 8 9 27 5 10 7 19 Hits 337 | . 18 29 44 9 69 16 152 Melee 7 | . . . 1 . 1 1 4 Projectile 330 | . 18 29 43 9 68 15 148 AOE 2 | . . . . 2 . . . Critical Strikes 44 | . 1 . 1 1 29 . 12 Damage Taken 6709 | . 235 242 569 155 1577 246 3685 Core 866 | . 27 23 71 18 134 43 550 Absorbed by Shields . | . . . . . . . . Regen/Repaired (Parts) 269 | . . . 269 . . . . Core Remaining (%) 71 | 100 . 80 . . . 33 . Volleys Fired 276 | 4 27 24 84 6 44 8 79 Largest 3 | 2 2 2 3 3 2 3 3 Hottest 165 | 40 50 60 83 145 53 148 165 Shots Fired 635 | 8 54 48 239 8 85 19 174 Gun 473 | 8 42 24 170 1 81 16 131 Cannon 153 | . 12 24 69 3 . 2 43 Launcher 9 | . . . . 4 4 1 . Special . | . . . . . . . . Kinetic 603 | 8 54 48 239 3 81 13 157 Thermal 16 | . . . . 1 . 3 12 Explosive 9 | . . . . 4 4 1 . Electromagnetic 7 | . . . . . . 2 5 Robot Hit Streak 14 | 2 10 3 14 5 8 9 9 Robot Miss Streak 11 | 1 4 8 11 3 5 1 4 Penetration Max 1 | . . . . . . . 1 Secondary Targets 3 | . . . 1 . . 2 . Max Gunslinging Chain 1 | . . . 1 . . 1 . Autonomous 11 | . . . . . 11 . . Shots Hit Robots 437 | 4 34 23 166 3 84 16 107 Core Hits 267 | 4 17 23 97 9 37 11 69 Critical Kills 3 | . . . . . 1 . 2 Critical Parts Destroyed 9 | . . . . . 2 . 7 Critical Strikes 23 | . . . 1 . 8 . 14 Destroy 18 | . . . 1 . 3 . 14 Sever 5 | . . . . . 5 . . Melee Attacks 51 | . . . 1 . 40 1 9 Impact 1 | . . . 1 . . . . Slashing 46 | . . . . . 36 1 9 Piercing . | . . . . . . . . Sneak Attacks 7 | . . . . . 5 1 1 Combat Hostiles 1 | . . . . . . 1 . Follow-up Attacks . | . . . . . . . . Damage Inflicted 9458 | 50 457 337 2673 524 2327 504 2586 Guns 4529 | 50 350 130 1777 20 849 197 1156 Cannons 2115 | . 107 207 896 26 . 53 826 Explosions 1427 | . . . . 478 373 209 367 Melee 1387 | . . . . . 1105 45 237 Ramming . | . . . . . . . . Kinetic 6185 | 50 457 337 2673 26 849 156 1637 Thermal 716 | . . . . 20 . 105 591 Explosive 996 | . . . . 478 373 145 . Electromagnetic 174 | . . . . . . 53 121 Impact . | . . . . . . . . Slashing 1387 | . . . . . 1105 45 237 Piercing . | . . . . . . . . Highest Corruption 4 | . . . 3 3 4 . . Average Corruption 3 | . . . 3 3 3 . . Corruption Purged . | . . . . . . . . Corruption Blocked . | . . . . . . . . Effects 73 | . . . 14 33 26 . . Message Errors 11 | . . . 4 2 5 . . Matter Fused 21 | . . . 2 9 10 . . Heat Flow Errors 13 | . . . . 9 4 . . Energy Discharges 9 | . . . 1 5 3 . . Parts Fused 1 | . . . 1 . . . . Data Loss (minor) 9 | . . . 1 5 3 . . Data Loss (major) 4 | . . . 2 1 1 . . Misfires 3 | . . . 2 1 . . . Weapon Failures 2 | . . . 1 1 . . . Overload Shots . | . . . . . . . . Overflow Damage 85 | . . . . 34 44 . 7 Projectiles . | . . . . . . . . Explosions 41 | . . . . 34 . . 7 Melee 44 | . . . . . 44 . . Knockbacks 34 | . 3 7 12 . . . 12 Impact . | . . . . . . . . Kinetic 33 | . 3 6 12 . . . 12 Secondary 1 | . . 1 . . . . . Self-Inflicted Damage 202 | . . . . 7 90 . 105 Shots 5 | . . . . 1 2 . 2 Rammed . | . . . . . . . . Targets Rammed . | . . . . . . . . Kicked . | . . . . . . . . Crushed . | . . . . . . . . Highest Temperature 252 | . 23 90 179 252 207 113 247 Average Temperature 52 | . 8 40 46 88 70 42 62 Received Heat Transfer 1787 | . 153 9 291 . 29 108 1197 Siege Activations . | . . . . . . . . Martial Activations . | . . . . . . . . Shielding Activations . | . . . . . . . . Robots Disrupted . | . . . . . . . . Combat Hostiles . | . . . . . . . . Robots Corrupted . | . . . . . . . . Combat Hostiles . | . . . . . . . . Parts Fried 1 | . . . . . . . 1 Impact Corruptions . | . . . . . . . . Robots Melted . | . . . . . . . . Combat Hostiles . | . . . . . . . . Parts Melted . | . . . . . . . . Heat Transferred 600 | . . . . 37 . 124 439 Parts Sabotaged . | . . . . . . . . Parts Stolen . | . . . . . . . . Parts Stripped . | . . . . . . . . Power Chain Reactions 1 | . . . . . . 1 . Alert | -11 -10 -10 -9 -9 -9 -8 -8 ------- Run | Yrd Mat Min Mat Min Exi Min Mat Maximum Alert Level 1 | . . . 1 . . . . Low Security (%) 90 | 100 100 100 66 100 . 100 100 Level 1 9 | . . . 33 . . . . Level 2 . | . . . . . . . . Level 3 . | . . . . . . . . Level 4 . | . . . . . . . . Level 5 . | . . . . . . . . High Security . | . . . . . . . . Max Security . | . . . . . . . . Peak Influence 283 | 10 96 107 283 166 . 83 168 Initial 103 | . . 18 39 103 . . 10 Average 58 | 2 30 29 139 29 . 18 25 Influence Increases 2569 | 15 264 337 882 265 . 206 600 Destroy 0b10 Robot/C 1540 | . 120 260 540 180 . 140 300 Destroy 0b10 Robot/NC 195 | 15 15 10 85 5 . 5 60 Destroy Leader 392 | . 34 50 168 30 . 30 80 Allied During Kill 21 | . . 2 . 16 . . 3 Successful Hack 77 | . 19 . 39 . . . 19 Disable Machine 105 | . 15 . 15 . . 15 60 Destroy Structure 104 | . 1 . 5 34 . 16 48 Lose Combat Pursuer 135 | . 60 15 30 . . . 30 Influence Decreases 2550 | 15 216 284 718 460 70 179 608 Entered New Map 341 | . . 30 62 162 70 . 17 Time Decay 1991 | 15 216 244 646 298 . 179 393 Lost Part 185 | . . 10 10 . . . 165 Lost Ally 31 | . . . . . . . 31 Purge Threat 2 | . . . . . . . 2 Squads Dispatched 11 | . 1 . 3 1 . . 6 Investigation 4 | . . . 1 1 . . 2 Extermination . | . . . . . . . . Reinforcement 7 | . 1 . 2 . . . 4 Assault . | . . . . . . . . Garrison . | . . . . . . . . Intercept . | . . . . . . . . Searches Triggered . | . . . . . . . . Unchained Authorized 1 | . . . . . . . 1 Construction Impeded . | . . . . . . . . Haulers Reinforced . | . . . . . . . . Active Scanning Responses . | . . . . . . . . Cargo Convoy Interrupts . | . . . . . . . . Stealth | -11 -10 -10 -9 -9 -9 -8 -8 --------- Run | Yrd Mat Min Mat Min Exi Min Mat Distress Signals 7 | . 1 . 5 . . . 1 Communications Jammed . | . . . . . . . . Distress Signals . | . . . . . . . . Times Spotted 157 | . 11 14 42 10 40 6 34 Peak Tracking Total 10 | . 3 3 3 3 10 3 4 Tactical Retreats 23 | . 2 1 2 . 17 . 1 Traps | -11 -10 -10 -9 -9 -9 -8 -8 ------- Run | Yrd Mat Min Mat Min Exi Min Mat Traps Triggered . | . . . . . . . . Indirectly . | . . . . . . . . Trap Hack Attempts . | . . . . . . . . Triggered . | . . . . . . . . Disarmed . | . . . . . . . . Reprogrammed . | . . . . . . . . Reused . | . . . . . . . . Traps Extracted . | . . . . . . . . Installed . | . . . . . . . . Triggered . | . . . . . . . . Machines | -11 -10 -10 -9 -9 -9 -8 -8 ---------- Run | Yrd Mat Min Mat Min Exi Min Mat Machines Disabled 16 | . 1 . 1 . 9 1 4 Max in Single Turn 1 | . 1 . 1 . 1 1 1 Machines Repaired . | . . . . . . . . Machines Dismantled . | . . . . . . . . Machines Sabotaged . | . . . . . . . . Overloaded Fab Kills . | . . . . . . . . Hacking | -11 -10 -10 -9 -9 -9 -8 -8 --------- Run | Yrd Mat Min Mat Min Exi Min Mat Machines Accessed 32 | . 6 2 15 1 2 . 6 Terminals 21 | . 6 . 10 . . . 5 Fabricators . | . . . . . . . . Repair Stations 2 | . . . 2 . . . . Recycling Units 2 | . . . 1 . . . 1 Scanalyzers 2 | . . . 2 . . . . Garrison Access . | . . . . . . . . Total Hacks 134 | . 14 2 94 1 5 . 18 Successful 85 | . 5 2 63 1 5 . 9 Failed 47 | . 8 . 30 . . . 9 Catastrophic 8 | . 1 . 5 . . . 2 Database Lockouts 2 | . 1 . 1 . . . . Manual 55 | . 13 . 30 . 1 . 11 Terminals 80 | . 14 . 51 . . . 15 Fabricators . | . . . . . . . . Repair Stations 6 | . . . 6 . . . . Recycling Units 8 | . . . 5 . . . 3 Scanalyzers 32 | . . . 32 . . . . Garrison Access . | . . . . . . . . Terminal Hacks 34 | . 3 2 17 1 5 . 6 Record 4 | . . . . . 4 . . Robot Analysis 5 | . 1 . 4 . . . . Prototype ID Bank 4 | . 1 . 3 . . . . Open Door 3 | . . 2 . 1 . . . Level Access Points 1 | . . . . . . . 1 Branch Access Points 2 | . 1 . 1 . . . . Emergency Access Points 1 | . . . 1 . . . . Terminal Index 1 | . . . 1 . . . . Unreport Threat 2 | . . . . . . . 2 Locate Traps 3 | . . . 2 . . . 1 Hauler Manifests 1 | . . . 1 . . . . Registered Components 1 | . . . 1 . . . . Registered Prototypes 1 | . . . 1 . . . . Zone Layout 4 | . . . 2 . . . 2 Proto ID Catalog 1 | . . . . . 1 . . Fabricator Hacks . | . . . . . . . . Repair Station Hacks 6 | . . . 6 . . . . Scan Component 3 | . . . 3 . . . . Repair 3 | . . . 3 . . . . Recycling Unit Hacks 1 | . . . 1 . . . . Report Inventory 1 | . . . 1 . . . . Scanalyzer 28 | . . . 28 . . . . Insert Component 9 | . . . 9 . . . . Analyze 11 | . . . 11 . . . . Retrieve Study 8 | . . . 8 . . . . Garrison Access Hacks . | . . . . . . . . Unauthorized Hacks 16 | . 2 . 11 . . . 3 Terminals 16 | . 2 . 11 . . . 3 Track 3 | . . . 2 . . . 1 Botnet 5 | . 1 . 2 . . . 2 Operators 2 | . 1 . 1 . . . . Skim 6 | . . . 6 . . . . Fabricators . | . . . . . . . . Repair Stations . | . . . . . . . . Recycling Units . | . . . . . . . . Scanalyzers . | . . . . . . . . Garrison Access . | . . . . . . . . Data Cores Recovered . | . . . . . . . . Used . | . . . . . . . . Hacking Detections 25 | . 6 . 13 . . . 6 Full Trace Events 2 | . . . 1 . . . 1 Feedback Events . | . . . . . . . . Feedback Blocked . | . . . . . . . . Robot Schematics Acquired . | . . . . . . . . Robots Built . | . . . . . . . . Authchips . | . . . . . . . . Time . | . . . . . . . . Total Robot Build Rating . | . . . . . . . . Part Schematics Acquired 9 | . . . 9 . . . . Parts Built . | . . . . . . . . Authchips . | . . . . . . . . Time . | . . . . . . . . Total Part Build Rating . | . . . . . . . . Part Studies Acquired 8 | . . . 8 . . . . Parts Repaired 3 | . . . 3 . . . . Time 114 | . . . 114 . . . . Parts Recycled . | . . . . . . . . Recycled Matter . | . . . . . . . . Retrieved Matter . | . . . . . . . . Retrieved Components . | . . . . . . . . Parts Scanalyzed 9 | . . . 9 . . . . Part Schematics Acquired 9 | . . . 9 . . . . Parts Damaged . | . . . . . . . . Bothacking | -11 -10 -10 -9 -9 -9 -8 -8 ------------ Run | Yrd Mat Min Mat Min Exi Min Mat Used RIF Installer . | . . . . . . . . Robots Hacked 4 | . . . . . 4 . . Non-combat 3 | . . . . . 3 . . Combat 1 | . . . . . 1 . . Robot Hacks Applied 4 | . . . . . 4 . . parse_system 4 | . . . . . 4 . . Relay Couplers Released . | . . . . . . . . Fabnet Peak Effective % . | . . . . . . . . Robots Rewired . | . . . . . . . . Allies Hacked . | . . . . . . . . Hacks Repelled . | . . . . . . . . Allies | -11 -10 -10 -9 -9 -9 -8 -8 -------- Run | Yrd Mat Min Mat Min Exi Min Mat Total Allies 5 | . . 1 . 2 . . 2 Largest Group 2 | . . 1 . 2 2 . 2 Highest-Rated Group 49 | . . 31 . 49 44 . 29 Highest-Rated Ally 31 | . . 31 . 31 26 . 16 Total Orders 13 | . . . . . . . 13 STAY 2 | . . . . . . . 2 EXPLORE 5 | . . . . . . . 5 RETURN 6 | . . . . . . . 6 Ally Attacks 68 | . . 2 . . . . 66 Total Damage 982 | . . 20 . . . . 962 Kills 4 | . . 1 . . . . 3 Allies Corrupted . | . . . . . . . . Allies Melted . | . . . . . . . . Turrets Deployed 1 | . . . . . . . 1 Intel | -11 -10 -10 -9 -9 -9 -8 -8 ------- Run | Yrd Mat Min Mat Min Exi Min Mat Active Infowar (turns) 1319 | 27 616 673 . . 1 . 2 Seismic 1316 | 27 616 673 . . . . . Cloaking 3 | . . . . . 1 . 2 Robot Analysis Total 5 | . 1 . 4 . . . . Derelict Logs Recovered 4 | . . 1 . 3 . . . Drone Launches 43 | . . . . . . . 43 Drone Recoveries 38 | . . . . . . . 38 Exploration | -11 -10 -10 -9 -9 -9 -8 -8 ------------- Run | Yrd Mat Min Mat Min Exi Min Mat Turns Passed 11415 | 95 616 846 2519 1866 2606 947 1920 Spaces Moved 4480 | 73 442 570 825 618 1028 470 454 Core 8 | 8 . . . . . . . Treads 2181 | 11 1 . 747 618 651 . 153 Legs 1142 | . . . . . 377 470 295 Wheels 1149 | 54 441 570 78 . . . 6 Hover . | . . . . . . . . Flight . | . . . . . . . . Fastest Speed 50 | 50 95 125 115 240 190 190 180 Average Speed 196 | 88 107 125 225 240 225 190 224 Slowest Speed 400 | 160 160 140 240 240 330 190 400 Overloaded Moves . | . . . . . . . . Propulsion Burnouts . | . . . . . . . . Robots Hopped . | . . . . . . . . Potential Cave-ins . | . . . . . . . . Cave-ins Triggered . | . . . . . . . . Exploration Rate (%) 71 | 4 64 90 93 96 90 91 41 Regions Visited 7 Branch Regions 4 Pre-discovered Areas 6 | . . 1 2 2 1 . . Known Exits Taken 3 | . 1 . 1 . . 1 . Unknown Exits Taken 4 | 1 . 1 . 1 1 . . Scrap Searched 2 | . . 1 . 1 . . . Spaces Dug 59 | . . . . 34 . 15 10 Terrain Destroyed 145 | . . . . 44 31 18 52 Melee . | . . . . . . . . Projectile 15 | . . . . . 2 . 13 AOE 129 | . . . . 44 29 18 38 Terrain Rammed . | . . . . . . . . Walls Destroyed . | . . . . . . . . Machines Disabled . | . . . . . . . . Actions | -11 -10 -10 -9 -9 -9 -8 -8 --------- Run | Yrd Mat Min Mat Min Exi Min Mat Total 6466 | 92 533 661 1310 991 1195 503 1181 Wait 1358 | 1 45 36 319 353 23 17 564 Move 4473 | 72 441 569 824 617 1027 469 454 Hop . | . . . . . . . . Pick Up 90 | 6 13 9 28 3 16 . 15 Fast Attach 30 | 7 . 1 7 . 3 1 11 Attach 37 | . . 1 3 . 17 . 16 Detach 8 | . . . . . 5 . 3 Swap 66 | 2 2 7 17 10 5 7 16 Drop 76 | . 5 14 27 2 14 . 14 Fire 276 | 4 27 24 84 6 44 8 79 Melee 51 | . . . 1 . 40 1 9 Ram . | . . . . . . . . Kick . | . . . . . . . . Crush . | . . . . . . . . Escape Stasis . | . . . . . . . . Rewire 1 | . . . . . 1 . . Trap . | . . . . . . . . Miscellaneous . | . . . . . . . . Route ------- -11/Scrapyard -10/Materials (discovered 4 exits: *Mat x2 / *Min / [*Sub]) -10/Mines -9/Materials (discovered 4 exits: *Mat x3 / *Min) -9/Mines (discovered 3 exits: *Mat x2 / *Exi) -9/Exiles (discovered 2 exits: [*Min x2]) -8/Mines -8/Materials (discovered 4 exits: Fac x3 / Sto) History --------- Turn | Location | Event 3 | -11/Scrapyard | Discovered new exit (range 15) 96 | -11/Scrapyard | Entered Materials 118 | -10/Materials | Discovered new exit (range 15) 240 | -10/Materials | Discovered new exit (range 8) 311 | -10/Materials | Build established: Mutant 371 | -10/Materials | Discovered new exit (range 3) 423 | -10/Materials | Central database locked down 563 | -10/Materials | Identified exit to Mines 603 | -10/Materials | Discovered new exit (range 5) 712 | -10/Materials | Entered Mines 741 | -10/Mines | Joined a pair of Derelicts in attacking an 0b10 outpost 831 | -10/Mines | Met a Derelict who couldn't figure out how to use a Trap Extractor 927 | -10/Mines | Received a Mining Laser from a helpful Derelict 1274 | -10/Mines | Learned location of Mines (-9) 1420 | -10/Mines | Found the Drone Emporium 1429 | -10/Mines | Found Prototype Device 1429 | -10/Mines | Identified Splice Drone Bay 1505 | -10/Mines | Discovered new exit (range 9) 1558 | -10/Mines | Entered Materials 1558 | -9/Materials | Evolved 2 slots: Utility x1, Weapon x1 1963 | -9/Materials | Identified exit to Mines 1975 | -9/Materials | Build established: Scavenger-Tank 2068 | -9/Materials | Central database locked down 2567 | -9/Materials | Learned Storage trap positions 2604 | -9/Materials | Repaired Flak Cannon 2637 | -9/Materials | Repaired Hvy. Assault Rifle+ 2705 | -9/Materials | Learned location of Mines (-8) 2759 | -9/Materials | Learned location of 1 exit from Recycling 2795 | -9/Materials | Discovered new exit (range 4) 2802 | -9/Materials | Identified exit to Materials 2837 | -9/Materials | Learned Storage trap positions 2942 | -9/Materials | Learned 4 Recycling zone layouts 2992 | -9/Materials | Build established: Tank 2998 | -9/Materials | Loaded intel: 9 trap records 3920 | -9/Materials | Repaired Imp. Trap Extractor 4077 | -9/Materials | Entered Mines 4210 | -9/Mines | Assembled infested the area 4717 | -9/Mines | Discovered exit to Materials (range 8) 4768 | -9/Mines | Met a Derelict shopkeep closing up shop 4896 | -9/Mines | Learned Materials emergency access door positions 5049 | -9/Mines | Learned location of 1 exit from Proximity Caves 5346 | -9/Mines | Deemed a non-threat by the Exiles lab entrance 5346 | -9/Mines | Discovered new exit (range 5) 5489 | -9/Mines | Learned location of Storage (-8) 5818 | -9/Mines | Discovered exit to Materials (range 5) 5943 | -9/Mines | Entered Exiles 5943 | -9/Exiles | Accompanied by 2 allies 5973 | -9/Exiles | Led the pair of lost Derelicts to a safe place 5981 | -9/Exiles | Discovered new exit (range 15) 6015 | -9/Exiles | Met 8R-AWN 6050 | -9/Exiles | Met EX-HEX 6119 | -9/Exiles | Met EX-BIN 6190 | -9/Exiles | Met EX-DEC 6204 | -9/Exiles | Learned location of Zion (-6) 6253 | -9/Exiles | Build established: Mutant 6305 | -9/Exiles | Visited The Gauntlet 6738 | -9/Exiles | Aligned with FarCom system 6741 | -9/Exiles | Given EX-Vault access code 6798 | -9/Exiles | Opened EX-Vault 6814 | -9/Exiles | Found Cloak of Protection 6818 | -9/Exiles | Found AWS/Gauss 6835 | -9/Exiles | Found YOLO Cannon 6886 | -9/Exiles | Warned to stay clear of 0b10 Research branches 7145 | -9/Exiles | Attacked by the Exiles 7196 | -9/Exiles | Destroyed 7 combat bots 7249 | -9/Exiles | Lost 7 parts (1p2n2u2w) 7250 | -9/Exiles | Core integrity fell below 50% 7288 | -9/Exiles | Found 8R-AWN's Boregun 7292 | -9/Exiles | Found 8R-AWN's Boregun 7298 | -9/Exiles | Destroyed 8R-AWN 7311 | -9/Exiles | Found 8R-AWN's Armor/EX 7317 | -9/Exiles | Found Exp. Targeting Computer 7626 | -9/Exiles | Destroyed EX-DEC 7692 | -9/Exiles | Found Deploy-a-Sentry 7748 | -9/Exiles | Destroyed EX-BIN 7760 | -9/Exiles | Destroyed EX-HEX 7798 | -9/Exiles | Found System Purifier 8089 | -9/Exiles | Found AS-neutralizer No. 17b 8522 | -9/Exiles | Discovered new exit (range 14) 8549 | -9/Exiles | Stole three prototypes: Cloak of Protection, YOLO Cannon, Deploy-a-Sentry 8549 | -9/Exiles | Entered Mines 8867 | -8/Mines | Build established: Gunner 9334 | -8/Mines | Discovered exit to Materials (range 6) 9496 | -8/Mines | Entered Materials 9496 | -8/Materials | Evolved 2 slots: Propulsion x1, Utility x1 9497 | -8/Materials | Identified exit to Storage 9935 | -8/Materials | Build established: Scavenger-Tank 9990 | -8/Materials | Met 7R-MNS 10010 | -8/Materials | Attacked by 7R-MNS 10026 | -8/Materials | DAS Turret deployed 10051 | -8/Materials | Core integrity fell below 50% 10104 | -8/Materials | 7R-MNS lamented failing the tripod run 10104 | -8/Materials | Destroyed 7R-MNS 10128 | -8/Materials | Lost 12 parts (1p3n3u5w) 10384 | -8/Materials | Unchained authorized (BL-1NK) 10460 | -8/Materials | Identified exit to Factory 10872 | -8/Materials | Build established: Scavenger-Gunner 10913 | -8/Materials | Core integrity fell below 20% 11320 | -8/Materials | Lost 3 parts (1p1n1u) 11416 | -8/Materials | Destroyed by BL-1NK with Heavy Tesla Rifle Last Messages --------------- 11346_ Splice Drone retrieved by Splice Drone Bay (repair cost: 2). 11347_ Splice Drone destroyed. 11347_ Terminal disabled. 11347_ Splice Drone Bay destroyed. 11347_ Destroyed Splice Drone Bay. 11347_ Destroyed Mak. Microthruster. 11347_ HV Slug penetrates Wall. 11347_ >> Lost connection to Splice Drone. BL-1NK shrinks and is drawn into a quantum tunnel. 11358_ Acquired 1 matter. 11366_ U-05 Engineer builds a Wall. 11387_ U-05 Engineer lays Concrete. 11389_ U-05 Engineer builds a Wall. 11390_ U-05 Engineer lays Concrete. 11409_ U-05 Engineer builds a Wall. 11411_ A-02 Transporter destroyed. 11411_ HV Slug penetrates Wall. 11411_ HV Slug penetrates Earth. 11414_ U-05 Engineer lays Concrete. 11415_ U-05 Engineer builds a Wall. Map ----- +----------------------------------------------------+ | ?????????????????# #????????????????# #???? | | ?????????????????# #????????????????# #???? | | ?????????????????# #????????????????# #???? | | ?????????????????# #?????########???# #???? | | ?????????????????# #?????# #???# #???? | | ?????????????????# #?????# "T" #???# %#???? | | ?????????????????# #?????# #???# #???? | | ??????????######## #?????# #???# #???? | | ??????????# # #?????# #???# ##### | | ??????????# !!* # #?????# #??## # | | ??????????# !** + ##########+####### %# ! | | ??????????# !** # % # | | ??????????#= # %% %+ """ | | ??????????# [ # %%%% % %% # """ | | ?????????################ ##### % # """ | | ????????? #???????????# #?# # % # | | ????????? #######?????# ## # % # | | ?????????"" # ####### ##### "% ##### | | ?????????"" # T #?# T | | ?????????"" + "" aw ## ## % ##### | | ?????????"" # # ?##% % #???? | | ?????????"" # ###;""#####?### ######+#####? | | ????????? ## ##;;;##;;## ## ## ## | | ?????##??##### # u ; ## ## +% | | ?????? # # ;;;; # """ """%## | | ??????? # # u @ ===;8 + """ """ #? | | ???????? """ # # !=%=!;;;; % # """ """ #? | | ???????? """ + /n ===;;;;##+## #? | | ???????? """ # # ## # #? | | ??????? ### # " ## #! * #? | | ??????" #?# # ## ############ | | ????? ?? #?# ############ !! #????# | | ?????????####### ###????????# ! #????# """ " | | ????????? #??????????# ! ! #????# """ " | | ?????????##### #+####???????###### #????# """ " | | ?????????#???# # #???????????####????# | | ?????????#???# # #???????????# ########+#### | | ?????????#???# # #???????????# # # #### | | ?????????#???# # #???????????### + | | ?????????#???# # #?????????????# # | | ?????????#???# # #?????????????# " " # " | | ?????????##### # #?????????????# "R"?+ " | | ????????? # + #?????????????# """????? " | | ?????????"" # # #?????????????##+###????? | | ?????????"" # ######??????????????# #?????? | | ???????????????????????????????????????????? | | ??????????????????????????????????????????? | | ??????????????????????????????????????????? ? | | ???????????????????????????????????????????# ?? | | ???????????????????????????????????????????#??? | +----------------------------------------------------+ Best States ------------- Heat Dissipation 58 Energy Generation 19 Energy Capacity 290 Matter Stores 300 Matter Capacity 300 Sight Range 16 Terrain Scan Density 10 Corruption Containment 12 Armor Coverage 375 Resistance: EM 15 Evasion (%) 44 Targeting Accuracy 12 Core Analysis 9 Recoil Reduction 3 Defensive Hacking 10 Item Schematics ----------------- Imp. Trap Extractor | -9/Materials | Scanalyzed Huge Storage Unit | -9/Materials | Scanalyzed Hacking Suite | -9/Materials | Scanalyzed Datajack | -9/Materials | Scanalyzed Transport Network Coupler | -9/Materials | Scanalyzed Lrg. Storage Unit | -9/Materials | Scanalyzed Wheel | -9/Materials | Scanalyzed Beamcaster | -9/Materials | Scanalyzed Lgt. Armor Plating | -9/Materials | Scanalyzed Robot Schematics ------------------ None Fabricated ------------ Nothing Repaired ---------- Flak Cannon | 6% | -9/Materials Hvy. Assault Rifle | 18% | -9/Materials Imp. Trap Extractor | 60% | -9/Materials Studied --------- Hvy. Assault Rifle | -9/Materials | Hacked Wheel | -9/Materials | Hacked Lgt. Treads | -9/Materials | Hacked Ion Engine | -9/Materials | Hacked Lgt. EM Pulse Cannon | -9/Materials | Hacked Assault Rifle | -9/Materials | Hacked Datajack | -9/Materials | Hacked Com. Wheel | -9/Materials | Hacked Alien Tech Used ----------------- None Achievements -------------- None Challenges ------------ None Game ------ Seed LaserTitaniumScrap Manual? 0 Play Time 01:33:06 Cumulative 1289.8 hours Start 2026.01.27 @ 15:11:14 End 2026.01.27 @ 17:15:40 Sessions 1 Manual Loads 0 Difficulty Rogue Special Mode None Game No. 441 Rogue 436 Adventurer 4 Explorer 1 Win Type - Total 29 Types 15/5/1/2/0/1/2/0/2/1 Lore% 97 Gallery% 96 Achievement% 84 Wizard Run 0 Options --------- Layout 0 ASCII 0 Keyboard 0 Movement Numpad Keybinds 0 Fullscreen 2 Font 18/SmallcapsGlow Map View 76x50 Zoom Use 0% Tactical HUD 1 Map Filters NONE Filters NONE Steam 1 RUN: 900f4e66-7a00-4a39-9c85-fc3118507d54